[Event "Titled Tuesday Blitz July 6 2021"]
[White "Janaszak, Dawid"]
[Black "Makhnev, Denis"]
[WhiteFideId "1119206"]
[BlackFideId "13707647"]
[WhiteElo "2332"]
[BlackElo "2537"]
[Result "1/2-1/2"]
[Round "04"]
[TimeControl "180+1"]
[Date "2021.07.06"]
[WhiteClock "0:00:03"]
[BlackClock "0:00:28"]

1. d4 {[%clk 0:03:00]}  d5 {[%clk 0:02:59]} 2. Nf3 {[%clk 0:03:00]}  Nf6 {[%clk 0:02:58]} 3. Bf4 {[%clk 0:03:00]}  c5 {[%clk 0:02:58]} 4. e3 {[%clk 0:03:00]}  Nc6 {[%clk 0:02:57]} 5. Nbd2 {[%clk 0:03:00]}  cxd4 {[%clk 0:02:56]} 6. exd4 {[%clk 0:03:01]}  Qb6 {[%clk 0:02:55]} 7. Nb3 {[%clk 0:02:56]}  Bg4 {[%clk 0:02:54]} 8. Be2 {[%clk 0:02:50]}  e6 {[%clk 0:02:53]} 9. O-O {[%clk 0:02:50]}  a5 {[%clk 0:02:51]} 10. a4 {[%clk 0:02:44]}  Be7 {[%clk 0:02:50]} 11. Re1 {[%clk 0:02:35]}  O-O {[%clk 0:02:50]} 12. Ne5 {[%clk 0:02:21]}  Bxe2 {[%clk 0:02:49]} 13. Rxe2 {[%clk 0:02:22]}  Rfc8 {[%clk 0:02:43]} 14. h3 {[%clk 0:02:10]}  Nxe5 {[%clk 0:02:38]} 15. Bxe5 {[%clk 0:02:06]}  Rc4 {[%clk 0:02:35]} 16. c3 {[%clk 0:01:56]}  Rac8 {[%clk 0:02:34]} 17. Nc1 {[%clk 0:01:52]}  Ne4 {[%clk 0:02:22]} 18. Qb3 {[%clk 0:01:32]}  Qa6 {[%clk 0:02:11]} 19. Qd1 {[%clk 0:01:14]}  b5 {[%clk 0:01:58]} 20. axb5 {[%clk 0:00:45]}  Qxb5 {[%clk 0:01:59]} 21. Qb3 {[%clk 0:00:45]}  Qxb3 {[%clk 0:01:54]} 22. Nxb3 {[%clk 0:00:45]}  a4 {[%clk 0:01:51]} 23. Na5 {[%clk 0:00:43]}  a3 {[%clk 0:01:34]} 24. Nxc4 {[%clk 0:00:40]}  Rxc4 {[%clk 0:01:34]} 25. bxa3 {[%clk 0:00:32]}  Nxc3 {[%clk 0:01:33]} 26. Rc2 {[%clk 0:00:26]}  f6 {[%clk 0:01:32]} 27. Bf4 {[%clk 0:00:18]}  Kf7 {[%clk 0:01:22]} 28. Kf1 {[%clk 0:00:18]}  Na4 {[%clk 0:00:56]} 29. Rxc4 {[%clk 0:00:15]}  dxc4 {[%clk 0:00:57]} 30. Ke2 {[%clk 0:00:14]}  g5 {[%clk 0:00:51]} 31. Be3 {[%clk 0:00:13]}  f5 {[%clk 0:00:50]} 32. g3 {[%clk 0:00:13]}  Bf6 {[%clk 0:00:44]} 33. Rc1 {[%clk 0:00:11]}  c3 {[%clk 0:00:43]} 34. Kd3 {[%clk 0:00:11]}  Kg6 {[%clk 0:00:36]} 35. Kc4 {[%clk 0:00:10]}  e5 {[%clk 0:00:35]} 36. dxe5 {[%clk 0:00:10]}  Bxe5 {[%clk 0:00:35]} 37. Kb5 {[%clk 0:00:07]}  Nb2 {[%clk 0:00:35]} 38. a4 {[%clk 0:00:07]}  Nd3 {[%clk 0:00:34]} 39. Rc2 {[%clk 0:00:06]}  f4 {[%clk 0:00:35]} 40. gxf4 {[%clk 0:00:06]}  gxf4 {[%clk 0:00:36]} 41. Bc1 {[%clk 0:00:06]}  Ne1 {[%clk 0:00:28]} 42. Re2 {[%clk 0:00:06]}  Nd3 {[%clk 0:00:28]} 43. Rc2 {[%clk 0:00:05]}  Ne1 {[%clk 0:00:27]} 44. Re2 {[%clk 0:00:05]}  Nd3 {[%clk 0:00:28]} 45. Rc2 {[%clk 0:00:03]} 1/2-1/2


[Site "https://www.chess.com"]

[Event "Titled Tuesday Blitz July 6 2021"]
[White "Jarovinsky, Alexey"]
[Black "Howell, David W L"]
[WhiteFideId "14115131"]
[BlackFideId "410608"]
[WhiteElo "2446"]
[BlackElo "2643"]
[Result "0-1"]
[Round "04"]
[TimeControl "180+1"]
[Date "2021.07.06"]
[WhiteClock "0:00:04"]
[BlackClock "0:00:14"]

1. Nc3 {[%clk 0:03:00]}  d5 {[%clk 0:02:56]} 2. e4 {[%clk 0:02:59]}  dxe4 {[%clk 0:02:57]} 3. Nxe4 {[%clk 0:02:57]}  Nf6 {[%clk 0:02:57]} 4. d3 {[%clk 0:02:51]}  c5 {[%clk 0:02:50]} 5. Nf3 {[%clk 0:02:47]}  b6 {[%clk 0:02:39]} 6. Nxf6+ {[%clk 0:02:44]}  exf6 {[%clk 0:02:38]} 7. g3 {[%clk 0:02:44]}  Bb7 {[%clk 0:02:33]} 8. Bg2 {[%clk 0:02:44]}  Nc6 {[%clk 0:02:34]} 9. O-O {[%clk 0:02:43]}  Be7 {[%clk 0:02:34]} 10. b3 {[%clk 0:02:35]}  Qd7 {[%clk 0:02:32]} 11. Bb2 {[%clk 0:02:29]}  Rd8 {[%clk 0:02:20]} 12. Re1 {[%clk 0:02:27]}  O-O {[%clk 0:02:18]} 13. Qd2 {[%clk 0:02:23]}  Qc7 {[%clk 0:02:03]} 14. Qf4 {[%clk 0:02:10]}  Qxf4 {[%clk 0:02:01]} 15. gxf4 {[%clk 0:02:11]}  Bd6 {[%clk 0:01:55]} 16. f5 {[%clk 0:02:09]}  Nb4 {[%clk 0:01:41]} 17. Re2 {[%clk 0:02:04]}  Rfe8 {[%clk 0:01:39]} 18. Rae1 {[%clk 0:02:02]}  Kf8 {[%clk 0:01:29]} 19. a3 {[%clk 0:01:52]}  Bxf3 {[%clk 0:01:25]} 20. Rxe8+ {[%clk 0:01:49]}  Rxe8 {[%clk 0:01:26]} 21. Rxe8+ {[%clk 0:01:49]}  Kxe8 {[%clk 0:01:27]} 22. axb4 {[%clk 0:01:48]}  Bd1 {[%clk 0:01:10]} 23. bxc5 {[%clk 0:01:33]}  bxc5 {[%clk 0:01:11]} 24. Bd5 {[%clk 0:01:15]}  Bxc2 {[%clk 0:01:03]} 25. Bc4 {[%clk 0:01:14]}  Bd1 {[%clk 0:01:02]} 26. Bd5 {[%clk 0:01:00]}  Bg4 {[%clk 0:00:59]} 27. Be4 {[%clk 0:00:59]}  Bd1 {[%clk 0:00:59]} 28. Bd5 {[%clk 0:00:58]}  Bg4 {[%clk 0:00:56]} 29. Be4 {[%clk 0:00:58]}  Bh3 {[%clk 0:00:57]} 30. d4 {[%clk 0:00:52]}  Kd7 {[%clk 0:00:49]} 31. f3 {[%clk 0:00:44]}  Kc7 {[%clk 0:00:36]} 32. Kf2 {[%clk 0:00:38]}  Kb6 {[%clk 0:00:19]} 33. Ba3 {[%clk 0:00:37]}  g6 {[%clk 0:00:16]} 34. Ke3 {[%clk 0:00:28]}  Bxf5 {[%clk 0:00:10]} 35. Bxf5 {[%clk 0:00:27]}  gxf5 {[%clk 0:00:11]} 36. Kd3 {[%clk 0:00:20]}  Kc6 {[%clk 0:00:12]} 37. Kc4 {[%clk 0:00:17]}  cxd4 {[%clk 0:00:11]} 38. Bxd6 {[%clk 0:00:16]}  Kxd6 {[%clk 0:00:12]} 39. Kxd4 {[%clk 0:00:15]}  a5 {[%clk 0:00:13]} 40. f4 {[%clk 0:00:14]}  Kc6 {[%clk 0:00:12]} 41. Kc4 {[%clk 0:00:13]}  Kb6 {[%clk 0:00:13]} 42. h3 {[%clk 0:00:08]}  Kc6 {[%clk 0:00:12]} 43. b4 {[%clk 0:00:04]}  a4 {[%clk 0:00:11]} 44. b5+ {[%clk 0:00:03]}  Kb6 {[%clk 0:00:11]} 45. Kb4 {[%clk 0:00:04]}  a3 {[%clk 0:00:12]} 46. Kxa3 {[%clk 0:00:04]}  Kxb5 {[%clk 0:00:12]} 47. Kb3 {[%clk 0:00:05]}  Kc5 {[%clk 0:00:13]} 48. Kc3 {[%clk 0:00:05]}  Kd5 {[%clk 0:00:13]} 49. Kd3 {[%clk 0:00:05]}  h6 {[%clk 0:00:14]} 50. Ke3 {[%clk 0:00:02]}  Kc4 {[%clk 0:00:14]} 51. Kf3 {[%clk 0:00:02]}  Kd4 {[%clk 0:00:14]} 52. Kg3 {[%clk 0:00:02]}  Ke4 {[%clk 0:00:14]} 53. Kh4 {[%clk 0:00:03]}  Kxf4 {[%clk 0:00:14]} 54. Kh5 {[%clk 0:00:04]}  Kg3 {[%clk 0:00:15]} 55. h4 {[%clk 0:00:03]}  f4 {[%clk 0:00:15]} 56. Kxh6 {[%clk 0:00:04]}  Kxh4 {[%clk 0:00:14]} 0-1


[Site "https://www.chess.com"]

[Event "Titled Tuesday Blitz July 6 2021"]
[White "Kalajzic, Ivan"]
[Black "Pakleza, Zbigniew"]
[WhiteFideId "14506378"]
[BlackFideId "1119290"]
[WhiteElo "2163"]
[BlackElo "2526"]
[Result "1/2-1/2"]
[Round "04"]
[TimeControl "180+1"]
[Date "2021.07.06"]
[WhiteClock "0:00:20"]
[BlackClock "0:00:21"]

1. b3 {[%clk 0:03:00]}  d5 {[%clk 0:02:59]} 2. Bb2 {[%clk 0:03:01]}  Nf6 {[%clk 0:02:59]} 3. e3 {[%clk 0:03:01]}  Bf5 {[%clk 0:02:59]} 4. Nf3 {[%clk 0:03:00]}  e6 {[%clk 0:02:59]} 5. d4 {[%clk 0:03:00]}  Nbd7 {[%clk 0:02:57]} 6. Bd3 {[%clk 0:03:01]}  Bg6 {[%clk 0:02:57]} 7. O-O {[%clk 0:03:00]}  c6 {[%clk 0:02:56]} 8. Nbd2 {[%clk 0:03:00]}  Bd6 {[%clk 0:02:55]} 9. Ne5 {[%clk 0:03:00]}  O-O {[%clk 0:02:53]} 10. f4 {[%clk 0:02:59]}  Rc8 {[%clk 0:02:52]} 11. g4 {[%clk 0:02:46]}  Bxd3 {[%clk 0:02:45]} 12. cxd3 {[%clk 0:02:44]}  c5 {[%clk 0:02:41]} 13. g5 {[%clk 0:02:21]}  Ne8 {[%clk 0:02:37]} 14. Ndf3 {[%clk 0:02:04]}  Nc7 {[%clk 0:02:02]} 15. Rc1 {[%clk 0:01:42]}  Na6 {[%clk 0:01:49]} 16. Nxd7 {[%clk 0:01:11]}  Qxd7 {[%clk 0:01:50]} 17. a3 {[%clk 0:01:06]}  Qe7 {[%clk 0:01:47]} 18. Ra1 {[%clk 0:00:30]}  b5 {[%clk 0:01:39]} 19. dxc5 {[%clk 0:00:26]}  Nxc5 {[%clk 0:01:39]} 20. b4 {[%clk 0:00:24]}  Na4 {[%clk 0:01:35]} 21. Bd4 {[%clk 0:00:23]}  f6 {[%clk 0:01:25]} 22. Rc1 {[%clk 0:00:21]}  e5 {[%clk 0:01:20]} 23. gxf6 {[%clk 0:00:21]}  gxf6 {[%clk 0:01:21]} 24. Rxc8 {[%clk 0:00:20]}  Rxc8 {[%clk 0:01:19]} 25. fxe5 {[%clk 0:00:21]}  fxe5 {[%clk 0:01:17]} 26. Ba1 {[%clk 0:00:21]}  Kh8 {[%clk 0:00:51]} 27. Kh1 {[%clk 0:00:21]}  Nc3 {[%clk 0:00:37]} 28. Qe1 {[%clk 0:00:20]}  Na4 {[%clk 0:00:21]} 1/2-1/2


[Site "https://www.chess.com"]

[Event "Titled Tuesday Blitz July 6 2021"]
[White "Katz, Alexander"]
[Black "Jobava, Baadur"]
[WhiteFideId "2039796"]
[BlackFideId "13601520"]
[WhiteElo "2371"]
[BlackElo "2748"]
[Result "0-1"]
[Round "04"]
[TimeControl "180+1"]
[Date "2021.07.06"]
[WhiteClock "0:00:29"]
[BlackClock "0:01:47"]

1. e4 {[%clk 0:02:33]}  e5 {[%clk 0:02:58]} 2. Nf3 {[%clk 0:02:33]}  Nf6 {[%clk 0:02:58]} 3. Nxe5 {[%clk 0:02:33]}  d6 {[%clk 0:02:58]} 4. Nf3 {[%clk 0:02:33]}  Nxe4 {[%clk 0:02:59]} 5. Nc3 {[%clk 0:02:34]}  Nxc3 {[%clk 0:02:58]} 6. dxc3 {[%clk 0:02:34]}  Be7 {[%clk 0:02:59]} 7. Be3 {[%clk 0:02:31]}  Nc6 {[%clk 0:02:59]} 8. Qd2 {[%clk 0:02:31]}  Bf5 {[%clk 0:02:59]} 9. O-O-O {[%clk 0:02:31]}  O-O {[%clk 0:02:59]} 10. Nd4 {[%clk 0:02:29]}  Bg6 {[%clk 0:02:56]} 11. Bc4 {[%clk 0:02:28]}  Ne5 {[%clk 0:02:49]} 12. Be2 {[%clk 0:02:26]}  c5 {[%clk 0:02:46]} 13. Nb5 {[%clk 0:02:24]}  Qa5 {[%clk 0:02:45]} 14. Kb1 {[%clk 0:02:21]}  a6 {[%clk 0:02:45]} 15. Na3 {[%clk 0:01:39]}  b5 {[%clk 0:02:45]} 16. f4 {[%clk 0:01:39]}  Nc6 {[%clk 0:02:44]} 17. g4 {[%clk 0:01:37]}  Be4 {[%clk 0:02:43]} 18. Rhg1 {[%clk 0:01:37]}  Rfe8 {[%clk 0:02:42]} 19. f5 {[%clk 0:01:35]}  d5 {[%clk 0:02:38]} 20. g5 {[%clk 0:01:33]}  b4 {[%clk 0:02:38]} 21. f6 {[%clk 0:01:30]}  bxa3 {[%clk 0:02:37]} 22. fxe7 {[%clk 0:01:30]}  axb2 {[%clk 0:02:35]} 23. Bd3 {[%clk 0:01:28]}  Ne5 {[%clk 0:01:48]} 24. Bxe4 {[%clk 0:01:03]}  Nc4 {[%clk 0:01:48]} 25. Qxd5 {[%clk 0:01:03]}  Na3+ {[%clk 0:01:48]} 26. Kxb2 {[%clk 0:01:02]}  Rab8+ {[%clk 0:01:48]} 27. Kc1 {[%clk 0:01:02]}  Qxc3 {[%clk 0:01:48]} 28. Bxh7+ {[%clk 0:00:29]}  Kh8 {[%clk 0:01:47]} 0-1


[Site "https://www.chess.com"]

[Event "Titled Tuesday Blitz July 6 2021"]
[White "Kavyev, Ruslan"]
[Black "Sychev, Klementy"]
[WhiteFideId "34110981"]
[BlackFideId "4114060"]
[WhiteElo "2172"]
[BlackElo "2615"]
[Result "0-1"]
[Round "04"]
[TimeControl "180+1"]
[Date "2021.07.06"]
[WhiteClock "0:00:18"]
[BlackClock "0:00:31"]

1. d4 {[%clk 0:03:00]}  Nf6 {[%clk 0:02:59]} 2. c4 {[%clk 0:03:01]}  g6 {[%clk 0:02:59]} 3. Nc3 {[%clk 0:03:01]}  Bg7 {[%clk 0:02:59]} 4. e4 {[%clk 0:03:01]}  d6 {[%clk 0:03:00]} 5. Be2 {[%clk 0:03:02]}  O-O {[%clk 0:03:00]} 6. Be3 {[%clk 0:03:03]}  Nc6 {[%clk 0:02:58]} 7. Nf3 {[%clk 0:03:02]}  Ng4 {[%clk 0:02:57]} 8. Bg5 {[%clk 0:03:02]}  f6 {[%clk 0:02:57]} 9. Bc1 {[%clk 0:02:56]}  e5 {[%clk 0:02:56]} 10. d5 {[%clk 0:02:56]}  Nd4 {[%clk 0:02:44]} 11. Nxd4 {[%clk 0:02:56]}  exd4 {[%clk 0:02:44]} 12. Qxd4 {[%clk 0:02:42]}  f5 {[%clk 0:02:42]} 13. Qd1 {[%clk 0:02:42]}  Qh4 {[%clk 0:01:59]} 14. g3 {[%clk 0:02:09]}  Qe7 {[%clk 0:01:45]} 15. O-O {[%clk 0:01:50]}  h5 {[%clk 0:01:41]} 16. exf5 {[%clk 0:01:45]}  Bxf5 {[%clk 0:01:41]} 17. Bf3 {[%clk 0:01:41]}  Ne5 {[%clk 0:01:35]} 18. Bg2 {[%clk 0:01:40]}  Nxc4 {[%clk 0:01:31]} 19. Re1 {[%clk 0:01:33]}  Qf7 {[%clk 0:01:28]} 20. Qb3 {[%clk 0:01:03]}  Ne5 {[%clk 0:01:22]} 21. Bg5 {[%clk 0:00:49]}  Bh3 {[%clk 0:00:55]} 22. Ne4 {[%clk 0:00:31]}  Bxg2 {[%clk 0:00:52]} 23. Kxg2 {[%clk 0:00:32]}  Nf3 {[%clk 0:00:50]} 24. Rf1 {[%clk 0:00:31]}  Rae8 {[%clk 0:00:46]} 25. Qd3 {[%clk 0:00:20]}  Rxe4 {[%clk 0:00:43]} 26. Qxe4 {[%clk 0:00:20]}  Nxg5 {[%clk 0:00:43]} 27. Qd3 {[%clk 0:00:21]}  Nf3 {[%clk 0:00:36]} 28. Rad1 {[%clk 0:00:20]}  h4 {[%clk 0:00:35]} 29. g4 {[%clk 0:00:19]}  h3+ {[%clk 0:00:34]} 30. Kxh3 {[%clk 0:00:19]}  Qf4 {[%clk 0:00:33]} 31. Rh1 {[%clk 0:00:18]}  Ng5+ {[%clk 0:00:32]} 32. Kg2 {[%clk 0:00:18]}  Qxf2# {[%clk 0:00:31]} 0-1


[Site "https://www.chess.com"]

[Event "Titled Tuesday Blitz July 6 2021"]
[White "Keymer, Vincent"]
[Black "Mitrabha, Guha"]
[WhiteFideId "12940690"]
[BlackFideId "5057000"]
[WhiteElo "2474"]
[BlackElo "2334"]
[Result "1/2-1/2"]
[Round "04"]
[TimeControl "180+1"]
[Date "2021.07.06"]
[WhiteClock "0:00:06"]
[BlackClock "0:00:15"]

1. Nf3 {[%clk 0:03:00]}  d5 {[%clk 0:02:39]} 2. c4 {[%clk 0:03:01]}  c6 {[%clk 0:02:39]} 3. e3 {[%clk 0:03:02]}  Nf6 {[%clk 0:02:35]} 4. Nc3 {[%clk 0:03:02]}  Bf5 {[%clk 0:02:34]} 5. cxd5 {[%clk 0:03:01]}  cxd5 {[%clk 0:02:34]} 6. Qb3 {[%clk 0:03:02]}  Bc8 {[%clk 0:02:34]} 7. d4 {[%clk 0:03:01]}  Nc6 {[%clk 0:02:34]} 8. Bd3 {[%clk 0:02:57]}  e6 {[%clk 0:02:34]} 9. O-O {[%clk 0:02:54]}  Be7 {[%clk 0:02:34]} 10. Bd2 {[%clk 0:02:53]}  O-O {[%clk 0:02:34]} 11. Rfc1 {[%clk 0:02:49]}  Bd7 {[%clk 0:02:27]} 12. Na4 {[%clk 0:02:48]}  b6 {[%clk 0:02:21]} 13. Rc2 {[%clk 0:02:20]}  Ne4 {[%clk 0:02:17]} 14. Be1 {[%clk 0:02:08]}  Rb8 {[%clk 0:02:14]} 15. Rcc1 {[%clk 0:01:46]}  Qe8 {[%clk 0:02:12]} 16. Nc3 {[%clk 0:01:42]}  f5 {[%clk 0:02:12]} 17. Qd1 {[%clk 0:01:36]}  Rc8 {[%clk 0:02:09]} 18. Ba6 {[%clk 0:01:35]}  Rb8 {[%clk 0:02:03]} 19. a3 {[%clk 0:01:32]}  Na5 {[%clk 0:02:00]} 20. Ne5 {[%clk 0:01:17]}  Bf6 {[%clk 0:01:49]} 21. Nxd7 {[%clk 0:01:12]}  Qxd7 {[%clk 0:01:48]} 22. Bb5 {[%clk 0:01:10]}  Qf7 {[%clk 0:01:40]} 23. Ne2 {[%clk 0:01:00]}  Rfc8 {[%clk 0:01:25]} 24. Ba6 {[%clk 0:00:54]}  Rxc1 {[%clk 0:01:16]} 25. Rxc1 {[%clk 0:00:55]}  Bg5 {[%clk 0:01:01]} 26. Qc2 {[%clk 0:00:38]}  Bd8 {[%clk 0:00:33]} 27. f3 {[%clk 0:00:33]}  Nd6 {[%clk 0:00:31]} 28. Bg3 {[%clk 0:00:29]}  Qd7 {[%clk 0:00:32]} 29. b4 {[%clk 0:00:27]}  Nac4 {[%clk 0:00:28]} 30. Bxc4 {[%clk 0:00:26]}  Rc8 {[%clk 0:00:26]} 31. Bxd6 {[%clk 0:00:19]}  Rxc4 {[%clk 0:00:24]} 32. Qd3 {[%clk 0:00:18]}  Rxc1+ {[%clk 0:00:24]} 33. Nxc1 {[%clk 0:00:19]}  Qxd6 {[%clk 0:00:25]} 34. Qc3 {[%clk 0:00:14]}  h6 {[%clk 0:00:24]} 35. Nd3 {[%clk 0:00:13]}  Bg5 {[%clk 0:00:21]} 36. f4 {[%clk 0:00:13]}  Bf6 {[%clk 0:00:21]} 37. Qc8+ {[%clk 0:00:13]}  Kh7 {[%clk 0:00:22]} 38. h3 {[%clk 0:00:13]}  a5 {[%clk 0:00:20]} 39. Qb7 {[%clk 0:00:11]}  axb4 {[%clk 0:00:20]} 40. axb4 {[%clk 0:00:12]}  Bd8 {[%clk 0:00:18]} 41. Qc8 {[%clk 0:00:12]}  Bh4 {[%clk 0:00:15]} 42. Kh2 {[%clk 0:00:12]}  Bf6 {[%clk 0:00:14]} 43. g4 {[%clk 0:00:08]}  Qe7 {[%clk 0:00:08]} 44. gxf5 {[%clk 0:00:07]}  exf5 {[%clk 0:00:08]} 45. Ne5 {[%clk 0:00:05]}  Bxe5 {[%clk 0:00:08]} 46. Qxf5+ {[%clk 0:00:05]}  g6 {[%clk 0:00:08]} 47. Qxe5 {[%clk 0:00:04]}  Qxb4 {[%clk 0:00:09]} 48. Qc7+ {[%clk 0:00:02]}  Kg8 {[%clk 0:00:09]} 49. Qd8+ {[%clk 0:00:02]}  Kh7 {[%clk 0:00:10]} 50. Qd7+ {[%clk 0:00:03]}  Kh8 {[%clk 0:00:10]} 51. Qe8+ {[%clk 0:00:03]}  Kh7 {[%clk 0:00:10]} 52. Qd7+ {[%clk 0:00:03]}  Kh8 {[%clk 0:00:11]} 53. Qxd5 {[%clk 0:00:04]}  Qd2+ {[%clk 0:00:11]} 54. Qg2 {[%clk 0:00:05]}  Qxe3 {[%clk 0:00:11]} 55. Qa8+ {[%clk 0:00:05]}  Kg7 {[%clk 0:00:11]} 56. Qb7+ {[%clk 0:00:06]}  Kg8 {[%clk 0:00:11]} 57. Qc8+ {[%clk 0:00:06]}  Kf7 {[%clk 0:00:11]} 58. Qc7+ {[%clk 0:00:06]}  Kf8 {[%clk 0:00:10]} 59. Qd6+ {[%clk 0:00:05]}  Kf7 {[%clk 0:00:10]} 60. Qd5+ {[%clk 0:00:05]}  Qe6 {[%clk 0:00:10]} 61. Qb7+ {[%clk 0:00:04]}  Kf6 {[%clk 0:00:10]} 62. Qf3 {[%clk 0:00:05]}  Qa2+ {[%clk 0:00:10]} 63. Kg3 {[%clk 0:00:05]}  Qc4 {[%clk 0:00:11]} 64. d5 {[%clk 0:00:05]}  Qd4 {[%clk 0:00:10]} 65. Qb3 {[%clk 0:00:04]}  h5 {[%clk 0:00:11]} 66. h4 {[%clk 0:00:04]}  Kf5 {[%clk 0:00:11]} 67. Qc2+ {[%clk 0:00:04]}  Kf6 {[%clk 0:00:11]} 68. Qc6+ {[%clk 0:00:04]}  Kg7 {[%clk 0:00:12]} 69. Qd7+ {[%clk 0:00:05]}  Kh6 {[%clk 0:00:12]} 70. Qe6 {[%clk 0:00:05]}  Qd3+ {[%clk 0:00:12]} 71. Kf2 {[%clk 0:00:05]}  Qd2+ {[%clk 0:00:12]} 72. Kf3 {[%clk 0:00:06]}  Qd3+ {[%clk 0:00:13]} 73. Kf2 {[%clk 0:00:06]}  b5 {[%clk 0:00:13]} 74. Qe5 {[%clk 0:00:05]}  Kh7 {[%clk 0:00:13]} 75. Qc7+ {[%clk 0:00:04]}  Kh6 {[%clk 0:00:13]} 76. Qe5 {[%clk 0:00:05]}  Kh7 {[%clk 0:00:13]} 77. d6 {[%clk 0:00:04]}  b4 {[%clk 0:00:12]} 78. Qe7+ {[%clk 0:00:04]}  Kh6 {[%clk 0:00:13]} 79. d7 {[%clk 0:00:04]}  Qd2+ {[%clk 0:00:13]} 80. Kf3 {[%clk 0:00:05]}  Qd3+ {[%clk 0:00:14]} 81. Kg2 {[%clk 0:00:05]}  Qd2+ {[%clk 0:00:14]} 82. Kg3 {[%clk 0:00:06]}  Qd3+ {[%clk 0:00:14]} 83. Kf2 {[%clk 0:00:06]}  Qd2+ {[%clk 0:00:15]} 84. Kf3 {[%clk 0:00:06]}  Qd3+ {[%clk 0:00:15]} 85. Kf2 {[%clk 0:00:06]} 1/2-1/2


[Site "https://www.chess.com"]

[Event "Titled Tuesday Blitz July 6 2021"]
[White "Khanin, Semen"]
[Black "pooh2012"]
[WhiteFideId "4111990"]
[WhiteElo "2521"]
[BlackElo "2485"]
[Result "1-0"]
[Round "04"]
[TimeControl "180+1"]
[Date "2021.07.06"]
[WhiteClock "0:00:47"]
[BlackClock "0:00:06"]

1. e4 {[%clk 0:03:00]}  c6 {[%clk 0:02:53]} 2. d4 {[%clk 0:02:59]}  d5 {[%clk 0:02:53]} 3. Nd2 {[%clk 0:03:00]}  dxe4 {[%clk 0:02:50]} 4. Nxe4 {[%clk 0:03:01]}  Nd7 {[%clk 0:02:50]} 5. Ng5 {[%clk 0:03:00]}  Ngf6 {[%clk 0:02:50]} 6. Bd3 {[%clk 0:03:00]}  e6 {[%clk 0:02:49]} 7. N1f3 {[%clk 0:03:00]}  Bd6 {[%clk 0:02:49]} 8. Qe2 {[%clk 0:03:00]}  h6 {[%clk 0:02:50]} 9. Ne4 {[%clk 0:03:00]}  Nxe4 {[%clk 0:02:49]} 10. Qxe4 {[%clk 0:03:01]}  Qc7 {[%clk 0:02:50]} 11. Bd2 {[%clk 0:02:59]}  b6 {[%clk 0:02:46]} 12. a4 {[%clk 0:02:58]}  a5 {[%clk 0:02:37]} 13. Qe2 {[%clk 0:02:53]}  Bb7 {[%clk 0:02:36]} 14. O-O-O {[%clk 0:02:48]}  O-O-O {[%clk 0:02:20]} 15. Rhe1 {[%clk 0:02:47]}  Rhe8 {[%clk 0:02:19]} 16. Ne5 {[%clk 0:02:47]}  Nf6 {[%clk 0:02:01]} 17. c4 {[%clk 0:02:36]}  Bb4 {[%clk 0:01:31]} 18. Bc3 {[%clk 0:02:15]}  c5 {[%clk 0:01:11]} 19. dxc5 {[%clk 0:02:12]}  Bxc3 {[%clk 0:01:03]} 20. bxc3 {[%clk 0:02:11]}  bxc5 {[%clk 0:00:46]} 21. Rd2 {[%clk 0:01:53]}  Rd6 {[%clk 0:00:44]} 22. Rb2 {[%clk 0:01:49]}  Re7 {[%clk 0:00:34]} 23. Kc2 {[%clk 0:01:44]}  Rb6 {[%clk 0:00:33]} 24. Rxb6 {[%clk 0:01:42]}  Qxb6 {[%clk 0:00:34]} 25. Rb1 {[%clk 0:01:42]}  Qd6 {[%clk 0:00:32]} 26. Qe3 {[%clk 0:01:42]}  Rc7 {[%clk 0:00:30]} 27. Rb5 {[%clk 0:01:40]}  Nd7 {[%clk 0:00:18]} 28. Nxf7 {[%clk 0:01:38]}  Qxh2 {[%clk 0:00:15]} 29. Qxe6 {[%clk 0:01:37]}  Kb8 {[%clk 0:00:07]} 30. Nd6 {[%clk 0:01:21]}  Qxg2 {[%clk 0:00:04]} 31. Nxb7 {[%clk 0:00:56]}  Rxb7 {[%clk 0:00:04]} 32. Qxd7 {[%clk 0:00:52]}  Qxf2+ {[%clk 0:00:05]} 33. Kb3 {[%clk 0:00:52]}  Rxb5+ {[%clk 0:00:05]} 34. Qxb5+ {[%clk 0:00:48]}  Kc8 {[%clk 0:00:06]} 35. Qc6+ {[%clk 0:00:47]} 1-0


[Site "https://www.chess.com"]

[Event "Titled Tuesday Blitz July 6 2021"]
[White "Korchmar, Vasiliy"]
[Black "Isajevsky, Anton"]
[WhiteFideId "24131750"]
[BlackFideId "4142500"]
[WhiteElo "2370"]
[BlackElo "2510"]
[Result "1-0"]
[Round "04"]
[TimeControl "180+1"]
[Date "2021.07.06"]
[WhiteClock "0:00:03"]
[BlackClock "0:00:02"]

1. e4 {[%clk 0:03:00]}  c5 {[%clk 0:02:59]} 2. Nf3 {[%clk 0:03:00]}  d6 {[%clk 0:02:58]} 3. d4 {[%clk 0:03:01]}  cxd4 {[%clk 0:02:59]} 4. Nxd4 {[%clk 0:03:02]}  Nf6 {[%clk 0:02:59]} 5. Nc3 {[%clk 0:03:02]}  a6 {[%clk 0:02:59]} 6. Be2 {[%clk 0:03:02]}  e5 {[%clk 0:02:59]} 7. Nb3 {[%clk 0:03:00]}  Be7 {[%clk 0:02:59]} 8. Bg5 {[%clk 0:03:00]}  Be6 {[%clk 0:02:25]} 9. Bxf6 {[%clk 0:02:59]}  Bxf6 {[%clk 0:02:26]} 10. Bg4 {[%clk 0:02:59]}  O-O {[%clk 0:02:22]} 11. O-O {[%clk 0:02:58]}  Nc6 {[%clk 0:02:19]} 12. Bxe6 {[%clk 0:02:57]}  fxe6 {[%clk 0:02:19]} 13. Qg4 {[%clk 0:02:55]}  Qe7 {[%clk 0:02:15]} 14. Rad1 {[%clk 0:02:56]}  Rac8 {[%clk 0:02:09]} 15. Ne2 {[%clk 0:02:10]}  b5 {[%clk 0:01:37]} 16. c3 {[%clk 0:01:47]}  a5 {[%clk 0:01:36]} 17. Rd3 {[%clk 0:01:40]}  b4 {[%clk 0:01:13]} 18. c4 {[%clk 0:01:39]}  a4 {[%clk 0:01:13]} 19. Nd2 {[%clk 0:01:34]}  Nd4 {[%clk 0:01:12]} 20. Nxd4 {[%clk 0:01:34]}  exd4 {[%clk 0:01:13]} 21. b3 {[%clk 0:01:34]}  axb3 {[%clk 0:01:09]} 22. axb3 {[%clk 0:01:35]}  Ra8 {[%clk 0:01:07]} 23. f4 {[%clk 0:01:25]}  e5 {[%clk 0:00:59]} 24. Nf3 {[%clk 0:01:14]}  Ra3 {[%clk 0:00:46]} 25. f5 {[%clk 0:01:13]}  Rfa8 {[%clk 0:00:41]} 26. h4 {[%clk 0:01:13]}  h6 {[%clk 0:00:34]} 27. Kh2 {[%clk 0:01:13]}  Ra2 {[%clk 0:00:34]} 28. Rfd1 {[%clk 0:01:08]}  Rc2 {[%clk 0:00:32]} 29. R1d2 {[%clk 0:01:08]}  Rc3 {[%clk 0:00:32]} 30. Kh3 {[%clk 0:00:53]}  Ra3 {[%clk 0:00:31]} 31. Rd1 {[%clk 0:00:38]}  Raxb3 {[%clk 0:00:28]} 32. R3d2 {[%clk 0:00:39]}  Rxc4 {[%clk 0:00:24]} 33. Ra2 {[%clk 0:00:39]}  Ra3 {[%clk 0:00:24]} 34. Rxa3 {[%clk 0:00:25]}  bxa3 {[%clk 0:00:25]} 35. Ra1 {[%clk 0:00:25]}  Ra4 {[%clk 0:00:25]} 36. Nd2 {[%clk 0:00:18]}  a2 {[%clk 0:00:17]} 37. Qd1 {[%clk 0:00:18]}  Ra3+ {[%clk 0:00:17]} 38. Kh2 {[%clk 0:00:18]}  Qc7 {[%clk 0:00:15]} 39. Qh5 {[%clk 0:00:16]}  Qf7 {[%clk 0:00:11]} 40. Qe2 {[%clk 0:00:15]}  Bxh4 {[%clk 0:00:09]} 41. Nc4 {[%clk 0:00:16]}  Bg3+ {[%clk 0:00:06]} 42. Kg1 {[%clk 0:00:14]}  Rc3 {[%clk 0:00:05]} 43. Nxd6 {[%clk 0:00:13]}  Qe7 {[%clk 0:00:02]} 44. Nb5 {[%clk 0:00:02]}  Qh4 {[%clk 0:00:01]} 45. Qxa2+ {[%clk 0:00:02]}  Kh7 {[%clk 0:00:02]} 46. Nxc3 {[%clk 0:00:03]} 1-0


[Site "https://www.chess.com"]